fUSD/lending_fUSD_20251120
["ID","MTS","AMOUNT","RATE_DAILY","PERIOD"]
[394489771,1763622638941,-260.0,0.00017867,2]
[394489772,1763622638951,-150.0,0.00017867,2]
[394489773,1763622638962,-150.0,0.00017867,2]
[394489774,1763622638974,-150.0,0.00017867,2]
[394489775,1763622638985,-150.0,0.00017867,2]
[394489776,1763622638996,-150.0,0.00017867,2]
[394489777,1763622639006,-150.0,0.00017867,2]
[394489778,1763622639016,-251.483,0.00017867,2]
[394489779,1763622639026,-150.0,0.00017867,2]
[394489780,1763622639037,-150.0,0.00017867,2]
[394489781,1763622639047,-3434.0,0.00017867,2]
[394489782,1763622639058,-1319.0,0.00017867,2]
[394489783,1763622639067,-609.0,0.00017867,2]
[394489784,1763622639078,-575.0,0.00017867,2]
[394489785,1763622639088,-645.54126139,0.00017872,2]
[394489786,1763622639098,-645.54126139,0.00017881,2]
[394489787,1763622639107,-473.0,0.00017883,2]
[394489788,1763622639117,-645.54126139,0.00017891,2]
[394489789,1763622639127,-500.0,0.00017899,2]
[394489790,1763622639136,-312.17734083,0.00017899,2]
[394489791,1763622639145,-1000.0,0.00017899,2]
[394489792,1763622639155,-1000.0,0.00017899,2]
[394489793,1763622639164,-1000.0,0.00017899,2]
[394489794,1763622639174,-1000.0,0.00017899,2]
[394489795,1763622639183,-1000.0,0.00017899,2]
[394489796,1763622639193,-354.171,0.00017899,2]
[394489797,1763622639202,-1000.0,0.00017899,2]
[394489798,1763622639212,-500.0,0.00017899,2]
[394489799,1763622639223,-500.0,0.00017899,2]
[394489800,1763622639233,-500.0,0.00017899,2]
[394489801,1763622639243,-500.0,0.00017899,2]
[394489802,1763622639253,-500.0,0.00017899,2]
[394489803,1763622639263,-500.0,0.00017899,2]
[394489804,1763622639274,-621.53493897,0.00017899,2]
[394489805,1763622639284,-645.54126139,0.000179,2]
[394489806,1763622639294,-762.15955381,0.000179,2]
[394489807,1763622639304,-1500.0,0.00017916,2]
[394489808,1763622639314,-1000.0,0.00017916,2]
[394489809,1763622639323,-1000.0,0.00017916,2]
[394489810,1763622639333,-1000.0,0.00017916,2]
[394489811,1763622639343,-529.632,0.00017916,2]
[394489812,1763622639352,-500.0,0.00017918,2]
[394489813,1763622639362,-150.0,0.00017918,2]
[394489814,1763622639372,-1920.23312,0.0001793,2]
[394489815,1763622639382,-500.0,0.00017945,2]
[394489816,1763622639391,-453.365,0.0001796,2]
[394489817,1763622639401,-473.0,0.00017962,2]
[394489818,1763622639411,-500.0,0.00017973,2]
[394489819,1763622639420,-500.0,0.00017973,2]
[394489820,1763622639430,-500.0,0.00017973,2]
[394489821,1763622639439,-500.0,0.00017973,2]
[394489822,1763622639449,-500.0,0.00017973,2]
[394489823,1763622639459,-500.5808352,0.00017973,2]
[394489824,1763622639468,-500.0,0.00017973,2]
[394489825,1763622639479,-566.02822286,0.00017973,2]
[394489826,1763622639489,-503.69110106,0.00017973,2]
[394489827,1763622639498,-500.0,0.00017973,2]
[394489828,1763622639508,-500.0,0.00017973,2]
[394489829,1763622639518,-500.0,0.00017973,2]
[394489830,1763622639528,-503.08797881,0.00017973,2]
[394489831,1763622639538,-500.0,0.00017973,2]
[394489832,1763622639547,-600.29489185,0.00017973,2]
[394489833,1763622639556,-500.0,0.00017973,2]
[394489834,1763622639566,-500.0,0.00017973,2]
[394489835,1763622639577,-500.0,0.00017973,2]
[394489836,1763622639587,-500.0,0.00017973,2]
[394489837,1763622639596,-500.0,0.00017973,2]
[394489838,1763622639606,-500.0,0.00017973,2]
[394489839,1763622639615,-500.0,0.00017973,2]
[394489840,1763622639625,-500.0,0.00017973,2]
[394489841,1763622639634,-500.0,0.00017973,2]
[394489842,1763622639643,-214.052,0.00017973,2]
[394489843,1763622639652,-913.06,0.00017973,2]
[394489844,1763622639663,-772.88123224,0.00017982,2]
[394489845,1763622639684,-151.0,0.00017997,2]
[394489846,1763622639703,-151.0,0.00017997,2]
[394489847,1763622639712,-179.85957124,0.00017999,2]
[394489848,1763622639722,-1004.0874,0.00017999,2]
[394489849,1763622639731,-300.0,0.00017999,2]
[394489850,1763622639740,-368.39756649,0.00017999,2]
[394489851,1763622639750,-568.03072723,0.00017999,2]
[394489852,1763622639759,-500.0,0.00017999,2]
[394489853,1763622639769,-372.41069444,0.00017999,2]
[394489854,1763622639778,-500.0,0.00017999,2]
[394489855,1763622639787,-500.0,0.00017999,2]
[394489856,1763622639797,-500.0,0.00017999,2]
[394489857,1763622639806,-3990.0,0.00018,2]
[394489858,1763622639816,-179.06022182,0.00018,2]
[394489859,1763622639826,-150.0,0.00018,2]
[394489860,1763622639835,-150.0,0.00018,2]
[394489861,1763622639844,-150.0,0.00018,2]
[394489862,1763622639853,-150.00000001,0.00018,2]
[394489863,1763622639862,-150.0,0.00018,2]
[394489864,1763622639871,-181710.27573876,0.00018,2]
[394489865,1763622639885,-3531.10722291,0.00018,2]
[394489866,1763622639924,-41211.35087698,0.00018,2]
[394489869,1763622640257,-561.0,0.00017792,2]
[394489870,1763622640266,-500.7240345,0.00018,2]
[394489871,1763622640278,-449.12,0.00018,2]
[394489872,1763622640289,-352580.49959419,0.00018,2]
[394489873,1763622640394,-5638.7968325,0.00018,2]
[394489874,1763622640406,-1741.14925247,0.00018,2]
[394489875,1763622640417,-410.28585585,0.00018,2]
[394489884,1763622644103,-15583.05977735,0.00018,2]
[394489888,1763622646720,-7945.66454,0.00018,2]
[394489889,1763622646733,-460.0501,0.00018,2]
[394489890,1763622646744,-4435.80619054,0.00018,2]
[394489891,1763622662447,200.0,0.000173,6]
[394489892,1763622662846,700.0,0.00032,120]
[394489893,1763622664543,500.0,0.000174,6]
[394489894,1763622680760,800.0,0.000324,120]
[394489902,1763622699732,700.0,0.000328,120]
[394489904,1763622738990,738.0,0.000328,120]
[394489908,1763622892150,157.0,0.00041987,120]
[394489909,1763622921850,1141.0,0.00032116,120]
[394489910,1763622949530,162.17,0.00013728,2]
[394489911,1763623027462,-150.0,0.00016712,2]
[394489912,1763623056822,-165.6271023,0.00016873,2]
[394489913,1763623090011,-500.0,0.00016932,2]
[394489914,1763623090049,-312.17734083,0.00016932,2]
[394489915,1763623090079,-300.0,0.00016932,2]
[394489916,1763623090110,-944.39111374,0.00016932,2]
[394489917,1763623090195,-255.60888626,0.00016932,2]
[394489918,1763623100456,-550.0,0.00016932,2]
[394489919,1763623100487,-300.0,0.00016932,2]
[394489920,1763623100519,-300.0,0.00016932,2]
[394489921,1763623100549,-200.0,0.00016932,2]
[394489922,1763623100589,-937.56899,0.00016933,2]
[394489923,1763623100663,-424.86202,0.00016933,2]
[394489925,1763623120290,150.0,0.0001716,120]
[394489926,1763623162049,183.48,0.00031507,120]
[394489927,1763623208049,571.0,0.00031839,120]
[394489935,1763623332188,3000.0,0.00041989,30]
[394489942,1763623564691,5895.38296336,0.00011,2]
[394489946,1763623613990,2161.65200429,0.000162,5]
[394489947,1763623621860,423.71216559,0.000153,2]
[394489948,1763623625462,765.1419846,0.00015,2]
[394489949,1763623635384,5308.39576452,0.0001305,2]
[394489950,1763623666837,4396.21202701,0.00013,2]
[394489951,1763623687784,2575.49461551,0.0001439,2]
[394489952,1763623690705,635.66047941,0.000135,2]
[394489953,1763623690737,364.33952059,0.000135,2]
[394489954,1763623690879,305.32100327,0.000125,2]
[394489955,1763623703987,2280.49677384,0.00041989,30]
[394489958,1763623712839,272.71519929,0.000154,2]
[394489959,1763623714946,2297.42886975,0.00014999,2]
[394489960,1763623720059,8299.14478301,0.0001,2]
[394489961,1763623722867,1346.09955831,0.00013699,2]
[394489975,1763623831410,-1500.0,0.00016075,2]
[394489976,1763623831419,-2000.0,0.00016108,2]
[394489977,1763623831429,-2751.0,0.0001613,2]
[394489978,1763623831439,-300.0,0.00016199,2]
[394489979,1763623831448,-1200.0,0.00016199,2]
[394489980,1763623831458,-300.0,0.00016199,2]
[394489981,1763623831467,-150.0,0.000162,2]
[394489982,1763623831477,-150.0,0.000162,2]
[394489983,1763623831486,-150.0,0.000162,2]
[394489984,1763623831495,-150.0,0.000162,2]
[394489985,1763623831505,-150.0,0.000162,2]
[394489986,1763623831514,-150.00000001,0.000162,2]
[394489987,1763623831524,-150.0,0.000162,2]
[394489988,1763623831533,-634.03278128,0.000162,2]
[394489989,1763623831544,-250.0,0.00016234,2]
[394489990,1763623831553,-1064.39,0.00016264,2]
[394489991,1763623831562,-214.052,0.00016594,2]
[394489992,1763623831572,-913.06,0.00016594,2]
[394489993,1763623831581,-5484.26,0.00016616,2]
[394489994,1763623831593,-26197.0,0.00016812,2]
[394489995,1763623831603,-550.0,0.00016832,2]
[394489996,1763623831612,-1000.0,0.00016833,2]
[394489997,1763623831622,-38798.34767984,0.00016833,2]
[394489998,1763623831634,-50013.94325734,0.00016833,2]
[394489999,1763623831645,-89539.26167366,0.00016833,2]
[394490000,1763623831657,-48000.0,0.00016833,2]
[394490001,1763623831668,-3790.19674129,0.00016833,2]
[394490002,1763623831678,-11069.89309114,0.00016833,2]
[394490003,1763623831689,-619.08628159,0.00016833,2]
[394490004,1763623831700,-38648.51745282,0.00016833,2]
[394490007,1763623831715,-3502.22305106,0.00016833,2]
[394490031,1763623837324,-302.69033,0.00016833,2]
[394490032,1763623837413,-475715.84044126,0.00016833,2]
[394490033,1763623837423,-2673.9231,0.00016833,2]
[394490034,1763623837431,-2500.0,0.00016833,2]
[394490035,1763623837441,-472.01807675,0.00016873,2]
[394490036,1763623837450,-500.0,0.00016873,2]
[394490037,1763623837459,-500.0,0.00016873,2]
[394490038,1763623837468,-2969.86282524,0.00016873,2]
[394490039,1763623837477,-193.97043905,0.00016873,2]
[394490040,1763623837486,-151.0,0.00016923,2]
[394490041,1763623837495,-151.0,0.00016923,2]
[394490042,1763623837505,-151.0,0.00016923,2]
[394490043,1763623837516,-151.0,0.00016923,2]
[394490044,1763623837526,-151.0,0.00016923,2]
[394490045,1763623837535,-151.0,0.00016923,2]
[394490046,1763623837544,-151.0,0.00016923,2]
[394490047,1763623837553,-151.0,0.00016923,2]
[394490048,1763623837562,-151.0,0.00016923,2]
[394490049,1763623837571,-151.0,0.00016923,2]
[394490050,1763623837581,-151.0,0.00016923,2]
[394490051,1763623837590,-151.0,0.00016923,2]
[394490052,1763623837600,-151.0,0.00016923,2]
[394490053,1763623837609,-151.0,0.00016923,2]
[394490054,1763623837618,-151.0,0.00016923,2]
[394490055,1763623837627,-155.41844459,0.00016923,2]
[394490056,1763623837636,-213.34167533,0.00016947,2]
[394490057,1763623837645,-500.0,0.00016973,2]
[394490058,1763623837655,-500.0,0.00016973,2]
[394490059,1763623837664,-500.0,0.00016973,2]
[394490060,1763623837672,-500.94845336,0.00016973,2]
[394490061,1763623837681,-229.58849112,0.00016973,2]
[394490062,1763623837690,-501.04958789,0.00016973,2]
[394490063,1763623837699,-500.0,0.00016973,2]
[394490064,1763623837708,-500.0,0.00016973,2]
[394490065,1763623837717,-500.0,0.00016973,2]
[394490066,1763623837726,-2969.86282519,0.00016987,2]
[394490067,1763623837735,-151.0,0.00016997,2]
[394490068,1763623837744,-188122.09019941,0.00017,2]
[394490069,1763623837753,-500.0,0.00017014,2]
[394490070,1763623837762,-3413.0,0.00017091,2]
[394490071,1763623837771,-150.0,0.000171,2]
[394490072,1763623837780,-2969.86282519,0.00017101,2]
[394490073,1763623837790,-162.17,0.0001716,2]
[394490074,1763623837799,-150.0,0.0001716,2]
[394490075,1763623837809,-166.66,0.00017203,2]
[394490076,1763623837819,-2969.86282519,0.00017215,2]
[394490077,1763623837828,-446.21,0.00017217,2]
[394490078,1763623837837,-213.19,0.00017232,2]
[394490079,1763623837847,-500.0,0.00017288,2]
[394490080,1763623837856,-2969.86282519,0.00017329,2]
[394490081,1763623837865,-193.97043904,0.00017387,2]
[394490082,1763623837874,-1000.0,0.00017399,2]
[394490083,1763623837884,-1000.0,0.00017421,2]
[394490084,1763623837893,-270.0,0.00017421,2]
[394490085,1763623837903,-150.0,0.00017428,2]
[394490086,1763623837913,-2969.86282519,0.00017444,2]
[394490087,1763623837922,-270.0,0.00017513,2]
[394490088,1763623837932,-1000.0,0.00017521,2]
[394490089,1763623837941,-1000.0,0.00017521,2]
[394490090,1763623837951,-1000.0,0.00017521,2]
[394490091,1763623837962,-1000.0,0.00017521,2]
[394490092,1763623837971,-1000.0,0.00017521,2]
[394490093,1763623837980,-1000.0,0.00017521,2]
[394490094,1763623837990,-2969.86282519,0.00017558,2]
[394490095,1763623838000,-500.0,0.00017562,2]
[394490096,1763623838013,-270.0,0.00017624,2]
[394490097,1763623838026,-222.41932101,0.00017637,2]
[394490098,1763623838036,-1419.0,0.00017637,2]
[394490099,1763623838050,-270.0,0.00017639,2]
[394490100,1763623838059,-1419.0,0.00017657,2]
[394490101,1763623838069,-310.0,0.00017671,2]
[394490102,1763623838078,-2969.86282519,0.00017672,2]
[394490103,1763623838087,-200.0,0.00017683,2]
[394490104,1763623838097,-403.0,0.000177,5]
[394490105,1763623838106,-420.0,0.00017707,2]
[394490106,1763623838116,-200.0,0.00017719,2]
[394490107,1763623838126,-300.0,0.00017719,2]
[394490108,1763623838135,-300.0,0.00017719,2]
[394490109,1763623838144,-150.12675746,0.00017719,2]
[394490110,1763623838154,-250.0,0.00017719,2]
[394490111,1763623838164,-200.0,0.00017719,2]
[394490112,1763623838174,-200.0,0.00017719,2]
[394490113,1763623838184,-200.0,0.00017719,2]
[394490114,1763623838194,-162.95436659,0.0001774,2]
[394490115,1763623838204,-166.66,0.0001777,2]
[394490116,1763623838213,-2969.86282519,0.00017786,2]
[394490117,1763623838223,-1680.0,0.00017796,2]
[394490118,1763623838232,-1724.0,0.000178,2]
[394490119,1763623838241,-300.0,0.0001782,2]
[394490120,1763623838251,-300.0,0.0001782,2]
[394490121,1763623838260,-300.0,0.0001782,2]
[394490122,1763623838269,-1280.15541,0.0001782,2]
[394490123,1763623838281,-1419.0,0.00017859,2]
[394490124,1763623838290,-1419.0,0.00017886,2]
[394490125,1763623838299,-500.0,0.00017899,2]
[394490126,1763623838309,-500.0,0.00017899,2]
[394490127,1763623838319,-500.0,0.00017899,2]
[394490128,1763623838328,-500.0,0.00017899,2]
[394490129,1763623838337,-500.0,0.00017899,2]
[394490130,1763623838346,-500.0,0.00017899,2]
[394490131,1763623838355,-500.0,0.00017899,2]
[394490132,1763623838364,-500.0,0.00017899,2]
[394490133,1763623838373,-621.53493897,0.00017899,2]
[394490134,1763623838382,-1000.0,0.000179,2]
[394490135,1763623838391,-2969.86282519,0.000179,2]
[394490136,1763623838400,-193.97043904,0.000179,2]
[394490137,1763623838409,-515.35190765,0.000179,2]
[394490138,1763623838418,-3990.0,0.000179,2]
[394490139,1763623838427,-500.0,0.00017918,2]
[394490140,1763623838436,-150.0,0.00017918,2]
[394490141,1763623838446,-1280.15542,0.0001793,2]
[394490142,1763623838454,-935.0,0.00017943,2]
[394490143,1763623838464,-500.0,0.00017945,2]
[394490144,1763623838473,-1500.0,0.00017968,2]
[394490145,1763623838482,-500.0,0.00017973,2]
[394490146,1763623838492,-500.0,0.00017973,2]
[394490147,1763623838502,-500.0,0.00017973,2]
[394490148,1763623838511,-500.0,0.00017973,2]
[394490149,1763623838520,-214.97423647,0.00017973,2]
[394490150,1763623838529,-500.0,0.00017973,2]
[394490151,1763623838539,-503.08797881,0.00017973,2]
[394490152,1763623838548,-502.23946923,0.00017973,2]
[394490153,1763623838557,-500.0,0.00017973,2]
[394490154,1763623838567,-500.0,0.00017973,2]
[394490155,1763623838576,-500.0,0.00017973,2]
[394490156,1763623838585,-500.0,0.00017973,2]
[394490157,1763623838594,-500.0,0.00017973,2]
[394490158,1763623838603,-500.0,0.00017973,2]
[394490159,1763623838613,-527.59827071,0.00017973,2]
[394490160,1763623838622,-500.0,0.00017973,2]
[394490161,1763623838631,-500.0,0.00017973,2]
[394490162,1763623838640,-500.0,0.00017973,2]
[394490163,1763623838649,-500.0,0.00017973,2]
[394490164,1763623838658,-500.0,0.00017973,2]
[394490165,1763623838667,-305.68130754,0.00017973,2]
[394490166,1763623838676,-500.0,0.00017973,2]
[394490167,1763623838685,-503.49235925,0.00017973,2]
[394490168,1763623838694,-500.0,0.00017973,2]
[394490169,1763623838703,-500.0,0.00017973,2]
[394490170,1763623838713,-150.0,0.00017973,2]
[394490171,1763623838722,-500.0,0.00017973,2]
[394490172,1763623838731,-1273.56,0.00017973,2]
[394490173,1763623838741,-772.88123224,0.00017982,2]
[394490174,1763623838750,-1419.0,0.00017989,2]
[394490175,1763623838759,-99747.8197383,0.00017991,2]
[394490176,1763623838767,-151.0,0.00017997,2]
[394490177,1763623838777,-568.03072723,0.00017998,2]
[394490178,1763623838787,-500.0,0.00017998,2]
[394490179,1763623838795,-368.39756649,0.00017998,2]
[394490180,1763623838804,-372.41069444,0.00017998,2]
[394490181,1763623838813,-500.0,0.00017998,2]
[394490182,1763623838823,-500.0,0.00017998,2]
[394490183,1763623838833,-500.0,0.00017998,2]
[394490184,1763623838842,-77764.706341,0.00017999,2]
[394490185,1763623838851,-967.3859038,0.00017999,2]
[394490186,1763623838860,-4034.1971036,0.00017999,2]
[394490187,1763623838871,-300.0,0.00017999,2]
[394490188,1763623838880,-2005.26352358,0.00017999,2]
[394490189,1763623838889,-179.06022182,0.00018,2]
[394490190,1763623838899,-16001.79668388,0.00018,2]
[394490206,1763623839986,-8551.07807921,0.00018,2]
[394490208,1763623839997,-898.37650872,0.00018,2]
[394490209,1763623840008,-1145.05261887,0.00018,2]
[394490210,1763623840024,-352580.49959419,0.00018,2]
[394490213,1763623845784,-468.37725316,0.00018,2]
[394490214,1763623845796,-434.07967378,0.00018,2]
[394490215,1763623845808,-1793.32,0.00018,2]
[394490216,1763623845819,-869.29227437,0.00018,2]
[394490217,1763623845862,-229398.35153975,0.00018,2]
[394490218,1763623845933,-906.3354,0.00018,2]
[394490219,1763623845944,-750.30250008,0.00018,2]
[394490220,1763623845955,-716.73120004,0.00018,2]
[394490232,1763624093037,400.0,0.000169,6]
[394490233,1763624095129,800.0,0.000173,6]
[394490234,1763624097215,1300.0,0.000174,6]
[394490257,1763624268066,30701.565573,0.00017,7]
[394490258,1763624268092,5570.51501364,0.00017,7]
[394490259,1763624268116,50000.0,0.00017,7]
[394490260,1763624268141,13727.91941336,0.00017,7]
[394490261,1763624268384,155.11,8.115e-05,2]
[394490262,1763624268679,155.11,9.468e-05,2]
[394490263,1763624269037,155.11,0.0001082,2]
[394490264,1763624269213,155.11,0.00012173,2]
[394490265,1763624269415,155.11,0.00013525,2]
[394490266,1763624269692,155.11,0.00014878,2]
[394490268,1763624393612,2129.87,0.00032877,120]
[394490269,1763624408882,200.0,0.00032014,120]
[394490271,1763624444384,166.66,0.00015297,2]
[394490272,1763624444618,166.66,0.00015619,2]
[394490273,1763624444807,166.66,0.00015941,2]
[394490274,1763624477009,999.0,0.00016061,3]
[394490301,1763624605847,-150.0,0.00016113,2]
[394490302,1763624605871,-155.11,0.0001623,2]
[394490303,1763624605893,-166.66,0.00016263,2]
[394490304,1763624605913,-2870.69,0.00016438,2]
[394490305,1763624605933,-1852.42,0.00016564,2]
[394490306,1763624605955,-166.66,0.00016585,2]
[394490307,1763624605975,-2500.0,0.00016623,2]
[394490308,1763624605997,-300.0,0.00016631,2]
[394490309,1763624606018,-300.0,0.00016632,2]
[394490310,1763624606039,-1200.0,0.00016632,2]
[394490311,1763624606060,-183.62271817,0.00016673,2]
[394490312,1763624606081,-193.97043904,0.00016673,2]
[394490313,1763624606104,-151.0,0.0001672,2]
[394490314,1763624606125,-621.53493897,0.00016722,2]
[394490315,1763624606146,-171.242,0.00016722,2]
[394490316,1763624606168,-847.205,0.00016722,2]
[394490317,1763624606189,-550.0,0.00016722,2]
[394490318,1763624606212,-94620.88490382,0.00016723,2]
[394490336,1763624707670,167.0,0.00031942,120]
[394490396,1763624835420,300.0,0.000169,6]
[394490404,1763624840783,351.53221419,0.00041988,30]
[394490423,1763624901530,360.41569686,0.00015433,2]
[394490445,1763624973508,152.14703909,0.00041988,120]
[394490464,1763625031586,-1600.0,0.00016037,2]
[394490466,1763625031596,-6360.88,0.00016154,2]
[394490468,1763625031606,-300.0,0.00016199,2]
[394490470,1763625031615,-1200.0,0.00016199,2]
[394490472,1763625031625,-150.0,0.000162,2]
[394490474,1763625031634,-150.0,0.000162,2]
[394490476,1763625031643,-150.0,0.000162,2]
[394490478,1763625031651,-150.0,0.000162,2]
[394490479,1763625031660,-150.0,0.000162,2]
[394490480,1763625031670,-1000.0,0.00016303,2]
[394490481,1763625031679,-21675.98073862,0.00016335,2]
[394490482,1763625031741,-13826.77926138,0.00016335,2]
[394490483,1763625031750,-304.78467559,0.000164,2]
[394490484,1763625031760,-151.0,0.0001657,2]
[394490485,1763625031769,-193.97043904,0.00016572,2]
[394490486,1763625031778,-183.62271815,0.00016572,2]
[394490487,1763625031787,-500.0,0.00016573,2]
[394490488,1763625031797,-45996.4618054,0.00016573,2]
[394490489,1763625031811,-482.9825,0.00016573,2]
[394490490,1763625031823,-1317.80925725,0.00016573,2]
[394490492,1763625031924,-50060.62929022,0.00016573,2]
[394490494,1763625031935,-3782.31350058,0.00016573,2]
[394490496,1763625031946,-2973.39073889,0.00016573,2]
[394490502,1763625037574,-3504.54252007,0.00016573,2]
[394490503,1763625037622,-1102.03458266,0.00016573,2]
[394490506,1763625037864,-33259.52767343,0.00016573,2]
[394490520,1763625039839,-481.81133,0.00016573,2]
[394490521,1763625039902,-76755.46094656,0.00016573,2]
[394490522,1763625039914,-549.76957592,0.00016573,2]
[394490523,1763625039925,-16339.57917101,0.00016573,2]
[394490524,1763625040028,-4505.45,0.00016573,2]
[394490525,1763625040039,-1318.07995841,0.00016573,2]
[394490526,1763625040050,-18000.0,0.00016573,2]
[394490542,1763625043748,-156948.97895358,0.00016573,2]
[394490547,1763625044049,-53.97695329,0.00016573,2]
[394490548,1763625044061,-721.93078129,0.00016573,2]
[394490549,1763625044071,-961.0,0.00016573,2]
[394490550,1763625045117,-260.11481653,0.00016573,2]
[394490551,1763625045128,-482.00032315,0.00016573,2]
[394490561,1763625045732,-730.18923772,0.00016573,2]
[394490573,1763625045983,-2957.07301025,0.00016573,2]
[394490574,1763625046134,-903.42,0.00016573,2]
[394490575,1763625046146,-2706.31642045,0.00016573,2]
[394490586,1763625077206,-426.10899248,0.000161,2]
[394490601,1763625131421,558.94,0.00013699,2]
[394490616,1763625159898,160.0,0.000328,120]
[394490617,1763625160773,160.0,0.000328,120]
[394490618,1763625161509,160.0,0.000328,120]
[394490639,1763625203324,499.24,0.00015967,2]
[394490658,1763625233156,-73.89100752,0.000161,2]
[394490659,1763625233180,-200.0,0.00016148,2]
[394490662,1763625242697,160.0,0.000328,120]
[394490663,1763625243395,160.0,0.000328,120]
[394490675,1763625269877,288.71,0.00015984,2]
[394490676,1763625272443,160.0,0.000328,120]
[394490677,1763625273238,160.0,0.000328,120]
[394490680,1763625278548,160.0,0.000328,120]
[394490682,1763625280519,160.0,0.000328,120]
[394490683,1763625281510,160.0,0.000328,120]
[394490728,1763625418329,168.03,0.000328,120]
[394490730,1763625420231,2643.45,0.00015921,2]
[394490736,1763625433551,500.0,0.00015895,2]
[394490769,1763625520046,4719.01,0.0001581,2]
[394490770,1763625565562,200.0,0.00032,120]
[394490772,1763625634875,552.04,0.00015898,2]
[394490773,1763625678493,162.17,0.00012715,2]
[394490776,1763625793298,166.68,0.00016188,2]
[394490788,1763625871302,79281.36,0.00041991,30]
[394490789,1763625903448,152.93,0.00031507,120]
[394490790,1763625909338,150.0,0.000162,2]
[394490791,1763625909384,150.0,0.000162,2]
[394490792,1763625909478,179.06022182,0.000162,2]
[394490793,1763625916339,150.0,0.000162,2]
[394490794,1763625919904,150.0,0.000162,2]
[394490815,1763626014220,255.91,0.00015682,2]
[394490816,1763626043673,300.0,0.000159,5]
[394490817,1763626045785,600.0,0.000169,6]
[394490819,1763626079178,446.21,0.0001557,2]
[394490820,1763626103686,151.0,0.0004199,120]
[394490821,1763626103864,151.0,0.0004199,120]
[394490822,1763626104240,151.0,0.0004199,120]
[394490823,1763626104596,151.744,0.0004199,120]
[394490834,1763626153856,3258.98,0.00015571,2]
[394490847,1763626231939,-200.0,0.00016234,2]
[394490848,1763626231950,-3371.29614447,0.00016301,2]
[394490849,1763626231959,-183.62271815,0.00016338,2]
[394490850,1763626231969,-154.6410347,0.00016372,2]
[394490851,1763626231978,-1200.0,0.00016372,2]
[394490852,1763626231987,-500.0,0.00016373,2]
[394490853,1763626231996,-594.14905244,0.00016373,2]
[394490854,1763626232005,-500.0,0.00016373,2]
[394490855,1763626232015,-500.0,0.00016373,2]
[394490856,1763626232024,-500.0,0.00016373,2]
[394490857,1763626232033,-151.0,0.00016397,2]
[394490858,1763626232205,-256.17026206,0.00016397,2]
[394490859,1763626232220,-300.0,0.00016398,2]
[394490861,1763626232230,-550.0,0.00016399,2]
[394490862,1763626232239,-134234.12480155,0.000164,2]
[394490865,1763626232250,-14350.13057769,0.000164,2]
[394490867,1763626232261,-18310.94185203,0.000164,2]
[394490869,1763626232273,-472.5292627,0.000164,2]
[394490871,1763626232284,-1557.6104135,0.000164,2]
[394490873,1763626232296,-591074.66309253,0.000164,2]
[394490876,1763626232306,-1466.79255753,0.00016401,2]
[394490877,1763626232315,-264.76339422,0.00016438,2]
[394490879,1763626232324,-500.0,0.00016438,2]
[394490881,1763626232333,-1000.0,0.00016473,2]